fUST/lending_fUST_20250720
["ID","MTS","AMOUNT","RATE_DAILY","PERIOD"]
[373402374,1752987046613,-751.53,0.0001914,2]
[373402376,1752987046622,-460.0,0.0001914,2]
[373402378,1752987046631,-460.0,0.0001914,2]
[373402380,1752987046640,-460.0,0.0001914,2]
[373402382,1752987046651,-1399.65,0.0001914,2]
[373402384,1752987046662,-460.0,0.0001914,2]
[373402386,1752987046672,-460.0,0.0001914,2]
[373402388,1752987046681,-460.0,0.0001914,2]
[373402390,1752987046691,-180.91023351,0.0001914,2]
[373402392,1752987046700,-741.24,0.0001914,2]
[373402394,1752987046710,-599.07,0.00019173,2]
[373402396,1752987046719,-1064.47,0.00019173,2]
[373402398,1752987046729,-460.0,0.00019173,2]
[373402399,1752987046738,-703.19,0.00019173,2]
[373402401,1752987046749,-778.82,0.00019173,2]
[373402403,1752987046758,-666.0,0.00019178,2]
[373402405,1752987046767,-182.509569,0.00019178,2]
[373402407,1752987046777,-632.1316733,0.00019178,2]
[373402409,1752987046787,-460.0,0.0001924,2]
[373402411,1752987046797,-551.39817053,0.0001924,2]
[373402413,1752987046807,-312.12986255,0.0001924,2]
[373402415,1752987046816,-210.04349605,0.0001924,2]
[373402417,1752987046825,-460.0,0.0001924,2]
[373402419,1752987046834,-460.0,0.0001924,2]
[373402421,1752987046843,-460.0,0.0001924,2]
[373402423,1752987046853,-1488.94,0.00019241,2]
[373402425,1752987046862,-2298.4431684,0.00019279,2]
[373402427,1752987046871,-100000.0,0.00019329,2]
[373402429,1752987046881,-829.01185327,0.00019364,2]
[373402431,1752987046891,-420.0,0.0001939,2]
[373402433,1752987046901,-683.29,0.00019412,2]
[373402435,1752987046910,-1203.39,0.00019413,2]
[373402437,1752987046919,-460.0,0.00019413,2]
[373402439,1752987046929,-1010.28,0.00019413,2]
[373402441,1752987046938,-460.0,0.00019413,2]
[373402443,1752987046947,-460.0,0.00019413,2]
[373402445,1752987046956,-2038.2,0.00019413,2]
[373402447,1752987046966,-460.0,0.00019413,2]
[373402449,1752987046975,-460.0,0.00019413,2]
[373402451,1752987046984,-470.8700511,0.00019414,2]
[373402453,1752987046993,-460.0,0.00019414,2]
[373402455,1752987047002,-460.0,0.00019414,2]
[373402457,1752987047012,-460.0,0.00019414,2]
[373402459,1752987047021,-481.72,0.00019414,2]
[373402461,1752987047031,-460.0,0.00019414,2]
[373402463,1752987047041,-460.0,0.00019414,2]
[373402465,1752987047050,-460.0,0.00019414,2]
[373402468,1752987047060,-460.0,0.00019414,2]
[373402469,1752987047069,-751.53,0.00019414,2]
[373402471,1752987047079,-460.0,0.00019414,2]
[373402474,1752987047088,-460.0,0.00019414,2]
[373402476,1752987047097,-460.0,0.00019414,2]
[373402477,1752987047106,-1399.65,0.00019414,2]
[373402480,1752987047117,-460.0,0.00019414,2]
[373402482,1752987047127,-460.0,0.00019414,2]
[373402484,1752987047136,-197.94,0.00019414,2]
[373402486,1752987047145,-741.24,0.00019414,2]
[373402488,1752987047157,-599.07,0.00019447,2]
[373402490,1752987047166,-1064.47,0.00019447,2]
[373402492,1752987047176,-460.0,0.00019447,2]
[373402494,1752987047185,-703.19,0.00019447,2]
[373402496,1752987047195,-778.82,0.00019447,2]
[373402498,1752987047204,-460.0,0.00019514,2]
[373402500,1752987047213,-460.0,0.00019514,2]
[373402502,1752987047223,-1488.94,0.00019515,2]
[373402504,1752987047232,-500.0,0.0001953,2]
[373402506,1752987047241,-2298.4431684,0.00019555,2]
[373402508,1752987047251,-214.5637056,0.00019652,2]
[373402510,1752987047260,-160.0,0.00019652,2]
[373402512,1752987047270,-160.0,0.00019652,2]
[373402514,1752987047279,-12615.16111038,0.00019652,2]
[373402516,1752987047288,-525.91036056,0.00019652,2]
[373402518,1752987047297,-839.59621281,0.00019652,2]
[373402520,1752987047306,-160.0,0.00019652,2]
[373402522,1752987047316,-230.98123516,0.00019652,2]
[373402524,1752987047324,-160.0,0.00019652,2]
[373402526,1752987047333,-160.0,0.00019652,2]
[373402528,1752987047342,-215.71456056,0.00019652,2]
[373402530,1752987047351,-160.0,0.00019652,2]
[373402532,1752987047360,-160.0,0.00019652,2]
[373402534,1752987047370,-683.29,0.00019686,2]
[373402536,1752987047379,-1203.39,0.00019687,2]
[373402538,1752987047389,-460.0,0.00019687,2]
[373402539,1752987047397,-1010.28,0.00019687,2]
[373402542,1752987047406,-460.0,0.00019687,2]
[373402544,1752987047416,-460.0,0.00019687,2]
[373402546,1752987047425,-2038.2,0.00019687,2]
[373402547,1752987047433,-368.83830233,0.00019687,2]
[373402549,1752987047443,-460.0,0.00019687,2]
[373402551,1752987047452,-412.70668576,0.00019688,2]
[373402553,1752987047461,-460.0,0.00019688,2]
[373402555,1752987047469,-460.0,0.00019688,2]
[373402557,1752987047478,-481.72,0.00019688,2]
[373402559,1752987047488,-460.0,0.00019688,2]
[373402561,1752987047497,-391.20589713,0.00019688,2]
[373402563,1752987047506,-460.0,0.00019688,2]
[373402565,1752987047515,-460.0,0.00019688,2]
[373402567,1752987047526,-751.53,0.00019688,2]
[373402569,1752987047536,-460.0,0.00019688,2]
[373402571,1752987047545,-460.0,0.00019688,2]
[373402573,1752987047556,-460.0,0.00019688,2]
[373402575,1752987047565,-1399.65,0.00019688,2]
[373402577,1752987047574,-460.0,0.00019688,2]
[373402579,1752987047583,-460.0,0.00019688,2]
[373402581,1752987047592,-741.24,0.00019688,2]
[373402583,1752987047601,-599.07,0.00019721,2]
[373402585,1752987047610,-1064.47,0.00019721,2]
[373402587,1752987047619,-460.0,0.00019721,2]
[373402589,1752987047628,-703.19,0.00019721,2]
[373402591,1752987047638,-778.82,0.00019721,2]
[373402593,1752987047647,-460.0,0.00019788,2]
[373402595,1752987047660,-1488.94,0.00019789,2]
[373402597,1752987047669,-2298.4431684,0.00019831,2]
[373402599,1752987047678,-683.29,0.0001996,2]
[373402601,1752987047688,-1203.39,0.00019961,2]
[373402603,1752987047697,-460.0,0.00019961,2]
[373402605,1752987047706,-1010.28,0.00019961,2]
[373402607,1752987047715,-460.0,0.00019961,2]
[373402609,1752987047724,-460.0,0.00019961,2]
[373402611,1752987047733,-2038.2,0.00019961,2]
[373402613,1752987047743,-460.0,0.00019961,2]
[373402615,1752987047752,-484.54661612,0.00019962,2]
[373402617,1752987047761,-460.0,0.00019962,2]
[373402619,1752987047771,-481.72,0.00019962,2]
[373402621,1752987047780,-460.0,0.00019962,2]
[373402623,1752987047789,-460.0,0.00019962,2]
[373402625,1752987047798,-460.0,0.00019962,2]
[373402627,1752987047807,-751.53,0.00019962,2]
[373402629,1752987047817,-460.0,0.00019962,2]
[373402631,1752987047826,-460.0,0.00019962,2]
[373402633,1752987047835,-1399.65,0.00019962,2]
[373402635,1752987047844,-460.0,0.00019962,2]
[373402637,1752987047853,-460.0,0.00019962,2]
[373402639,1752987047863,-741.24,0.00019962,2]
[373402641,1752987047872,-599.07,0.00019995,2]
[373402643,1752987047881,-1064.47,0.00019995,2]
[373402645,1752987047890,-460.0,0.00019995,2]
[373402647,1752987047899,-703.19,0.00019995,2]
[373402649,1752987047909,-778.82,0.00019995,2]
[373402651,1752987047919,-151.0,0.0002,2]
[373402653,1752987047928,-460.0,0.00020062,2]
[373402655,1752987047937,-1488.94,0.00020063,2]
[373402657,1752987047946,-512.46627473,0.00020078,2]
[373402659,1752987047955,-2298.4431684,0.00020107,2]
[373402661,1752987047965,-829.01185327,0.00020161,2]
[373402663,1752987047974,-168.265304,0.00020187,2]
[373402665,1752987047983,-683.29,0.00020234,2]
[373402666,1752987047993,-1203.39,0.00020235,2]
[373402668,1752987048003,-460.0,0.00020235,2]
[373402671,1752987048012,-1010.28,0.00020235,2]
[373402673,1752987048023,-460.0,0.00020235,2]
[373402675,1752987048033,-460.0,0.00020235,2]
[373402677,1752987048043,-2038.2,0.00020235,2]
[373402679,1752987048052,-460.0,0.00020235,2]
[373402681,1752987048062,-460.0,0.00020236,2]
[373402683,1752987048072,-481.72,0.00020236,2]
[373402685,1752987048081,-460.0,0.00020236,2]
[373402686,1752987048091,-460.0,0.00020236,2]
[373402688,1752987048100,-460.0,0.00020236,2]
[373402690,1752987048109,-751.53,0.00020236,2]
[373402693,1752987048121,-460.0,0.00020236,2]
[373402695,1752987048131,-297.21848106,0.00020236,2]
[373402696,1752987048140,-1399.65,0.00020236,2]
[373402698,1752987048150,-235.4598298,0.00020236,2]
[373402700,1752987048160,-460.0,0.00020236,2]
[373402702,1752987048169,-599.07,0.00020269,2]
[373402704,1752987048178,-1064.47,0.00020269,2]
[373402706,1752987048187,-364.42920905,0.00020269,2]
[373402708,1752987048197,-703.19,0.00020269,2]
[373402710,1752987048206,-778.82,0.00020269,2]
[373402712,1752987048215,-460.0,0.00020336,2]
[373402714,1752987048224,-1488.94,0.00020337,2]
[373402716,1752987048233,-500.0,0.00020343,2]
[373402718,1752987048242,-2298.4431684,0.00020383,3]
[373402720,1752987048252,-683.29,0.00020508,2]
[373402722,1752987048262,-1203.39,0.00020509,2]
[373402724,1752987048271,-460.0,0.00020509,2]
[373402726,1752987048280,-1010.28,0.00020509,2]
[373402728,1752987048289,-460.0,0.00020509,2]
[373402730,1752987048299,-460.0,0.00020509,2]
[373402732,1752987048309,-2038.2,0.00020509,2]
[373402734,1752987048319,-460.0,0.00020509,2]
[373402736,1752987048328,-404.82698452,0.0002051,2]
[373402738,1752987048338,-481.72,0.0002051,2]
[373402740,1752987048347,-460.0,0.0002051,2]
[373402742,1752987048356,-488.98249376,0.0002051,2]
[373402744,1752987048365,-460.0,0.0002051,2]
[373402746,1752987048374,-751.53,0.0002051,2]
[373402748,1752987048384,-460.0,0.0002051,2]
[373402750,1752987048394,-1399.65,0.0002051,2]
[373402752,1752987048403,-460.0,0.0002051,2]
[373402754,1752987048413,-506.73499596,0.00020538,2]
[373402756,1752987048422,-501.71492827,0.00020538,2]
[373402758,1752987048431,-599.07,0.00020543,2]
[373402760,1752987048440,-1064.47,0.00020543,2]
[373402762,1752987048450,-703.19,0.00020543,2]
[373402764,1752987048459,-778.82,0.00020543,2]
[373402766,1752987048468,-460.0,0.0002061,2]
[373402767,1752987048477,-1488.94,0.00020611,2]
[373402769,1752987048486,-2298.4431684,0.00020659,3]
[373402770,1752987048495,-214.5637056,0.0002066,3]
[373402771,1752987048504,-12615.16111038,0.0002066,3]
[373402772,1752987048513,-476.42619115,0.0002066,3]
[373402773,1752987048522,-683.29,0.00020782,2]
[373402774,1752987048531,-1203.39,0.00020783,2]
[373402775,1752987048541,-460.0,0.00020783,2]
[373402776,1752987048551,-1010.28,0.00020783,2]
[373402777,1752987048562,-460.0,0.00020783,2]
[373402778,1752987048572,-460.0,0.00020783,2]
[373402779,1752987048582,-2038.2,0.00020783,2]
[373402780,1752987048591,-460.0,0.00020783,2]
[373402781,1752987048600,-481.72,0.00020784,2]
[373402782,1752987048609,-460.0,0.00020784,2]
[373402783,1752987048619,-292.95492519,0.00020784,2]
[373402784,1752987048628,-751.53,0.00020784,2]
[373402785,1752987048637,-460.0,0.00020784,2]
[373402786,1752987048646,-1399.65,0.00020784,2]
[373402787,1752987048660,-460.0,0.00020784,2]
[373402788,1752987048669,-599.07,0.00020817,2]
[373402789,1752987048776,-1064.47,0.00020817,2]
[373402790,1752987048786,-703.19,0.00020817,2]
[373402791,1752987048796,-778.82,0.00020817,2]
[373402792,1752987048805,-1049.72,0.00020843,2]
[373402793,1752987048815,-558.52812857,0.00020884,2]
[373402794,1752987048825,-1488.94,0.00020885,2]
[373402795,1752987048834,-274.06147548,0.00020891,2]
[373402796,1752987048843,-2298.4431684,0.00020934,4]
[373402797,1752987048853,-829.01185327,0.00020958,2]
[373402798,1752987048862,-683.29,0.00021056,2]
[373402799,1752987048871,-1203.39,0.00021057,2]
[373402800,1752987048880,-460.0,0.00021057,2]
[373402801,1752987048889,-1010.28,0.00021057,2]
[373402802,1752987048898,-460.0,0.00021057,2]
[373402803,1752987048908,-460.0,0.00021057,2]
[373402804,1752987048917,-2038.2,0.00021057,2]
[373402805,1752987048927,-324.88792919,0.00021057,2]
[373402807,1752987048936,-481.72,0.00021058,2]
[373402809,1752987048945,-460.0,0.00021058,2]
[373402811,1752987048954,-751.53,0.00021058,2]
[373402812,1752987048963,-460.0,0.00021058,2]
[373402814,1752987048973,-1399.65,0.00021058,2]
[373402816,1752987048983,-460.0,0.00021058,2]
[373402818,1752987048992,-500.0,0.00021064,2]
[373402820,1752987049001,-599.07,0.00021091,2]
[373402822,1752987049011,-1064.47,0.00021091,2]
[373402824,1752987049020,-703.19,0.00021091,2]
[373402826,1752987049029,-778.82,0.00021091,2]
[373402828,1752987049039,-1208.10059976,0.00021135,2]
[373402829,1752987049048,-1488.94,0.00021159,2]
[373402831,1752987049058,-587.0,0.00021162,2]
[373402833,1752987049068,-2298.4431684,0.0002121,4]
[373402834,1752987049078,-683.29,0.0002133,2]
[373402835,1752987049087,-1203.39,0.00021331,2]
[373402836,1752987049096,-460.0,0.00021331,2]
[373402837,1752987049106,-1010.28,0.00021331,2]
[373402838,1752987049115,-178.96556016,0.00021331,2]
[373402839,1752987049125,-460.0,0.00021331,2]
[373402840,1752987049135,-2038.2,0.00021331,2]
[373402841,1752987049144,-481.72,0.00021332,2]
[373402842,1752987049153,-460.0,0.00021332,2]
[373402843,1752987049163,-751.53,0.00021332,2]
[373402844,1752987049173,-460.0,0.00021332,2]
[373402845,1752987049183,-1399.65,0.00021332,2]
[373402846,1752987049192,-460.0,0.00021332,2]
[373402847,1752987049202,-599.07,0.00021365,2]
[373402848,1752987049211,-1064.47,0.00021365,2]
[373402849,1752987049220,-703.19,0.00021365,2]
[373402850,1752987049229,-778.82,0.00021365,2]
[373402851,1752987049238,-1488.94,0.00021433,2]
[373402852,1752987049247,-2298.4431684,0.00021486,5]
[373402853,1752987049257,-207.4,0.00021567,2]
[373402854,1752987049266,-151.0,0.00021567,2]
[373402855,1752987049275,-151.0,0.00021567,2]
[373402856,1752987049284,-151.0,0.00021567,2]
[373402857,1752987049294,-151.0,0.00021567,2]
[373402858,1752987049304,-151.0,0.00021567,2]
[373402859,1752987049314,-151.0,0.00021567,2]
[373402860,1752987049324,-151.0,0.00021567,2]
[373402861,1752987049333,-151.0,0.00021567,2]
[373402862,1752987049342,-151.0,0.00021567,2]
[373402863,1752987049352,-151.0,0.00021567,2]
[373402864,1752987049361,-151.0,0.00021567,2]
[373402865,1752987049370,-151.0,0.00021567,2]
[373402866,1752987049381,-151.0,0.00021567,2]
[373402867,1752987049391,-151.0,0.00021567,2]
[373402868,1752987049400,-151.0,0.00021567,2]
[373402869,1752987049409,-151.0,0.00021567,2]
[373402870,1752987049419,-151.0,0.00021567,2]
[373402871,1752987049428,-151.0,0.00021567,2]
[373402872,1752987049437,-151.0,0.00021567,2]
[373402873,1752987049447,-151.0,0.00021567,2]
[373402874,1752987049456,-25000.0,0.00021567,2]
[373402875,1752987049467,-683.29,0.00021604,2]
[373402876,1752987049476,-1203.39,0.00021605,2]
[373402877,1752987049486,-460.0,0.00021605,2]
[373402878,1752987049495,-1010.28,0.00021605,2]
[373402879,1752987049504,-460.0,0.00021605,2]
[373402880,1752987049514,-2038.2,0.00021605,2]
[373402881,1752987049523,-481.72,0.00021606,2]
[373402882,1752987049533,-460.0,0.00021606,2]
[373402883,1752987049543,-751.53,0.00021606,2]
[373402884,1752987049552,-460.0,0.00021606,2]
[373402885,1752987049562,-1399.65,0.00021606,2]
[373402886,1752987049571,-460.0,0.00021606,2]
[373402887,1752987049580,-599.07,0.00021639,2]
[373402888,1752987049590,-1064.47,0.00021639,2]
[373402889,1752987049600,-703.19,0.00021639,2]
[373402890,1752987049609,-778.82,0.00021639,2]
[373402891,1752987049618,-1488.94,0.00021707,2]
[373402892,1752987049628,-2298.4431684,0.00021762,5]
[373402893,1752987049638,-31519.0,0.000218,7]
[373402894,1752987049647,-683.29,0.00021878,2]
[373402895,1752987049661,-1203.39,0.00021879,2]
[373402896,1752987049670,-460.0,0.00021879,2]
[373402897,1752987049679,-1010.28,0.00021879,2]
[373402898,1752987049689,-460.0,0.00021879,2]
[373402899,1752987049699,-2038.2,0.00021879,2]
[373402900,1752987049708,-481.72,0.0002188,2]
[373402901,1752987049717,-460.0,0.0002188,2]
[373402902,1752987049728,-751.53,0.0002188,2]
[373402903,1752987049738,-460.0,0.0002188,2]
[373402904,1752987049747,-1399.65,0.0002188,2]
[373402905,1752987049757,-460.0,0.0002188,2]
[373402906,1752987049766,-599.07,0.00021913,2]
[373402907,1752987049775,-1064.47,0.00021913,2]
[373402908,1752987049785,-703.19,0.00021913,2]
[373402909,1752987049794,-778.82,0.00021913,2]
[373402910,1752987049803,-170.02422363,0.00021918,2]
[373402911,1752987049814,-1488.94,0.00021981,2]
[373402912,1752987049823,-1276.19,0.00022,7]
[373402913,1752987049833,-62923.29,0.00022,2]
[373402914,1752987049842,-160.0,0.00022,2]
[373402915,1752987049852,-2298.4431684,0.00022038,6]
[373402916,1752987049863,-683.29,0.00022152,2]
[373402917,1752987049872,-454.11957381,0.00022152,2]
[373402918,1752987049882,-1203.39,0.00022153,2]
[373402919,1752987049891,-460.0,0.00022153,2]
[373402920,1752987049900,-1010.28,0.00022153,2]
[373402921,1752987049909,-173.27716513,0.00022153,2]
[373402922,1752987049919,-2038.2,0.00022153,2]
[373402923,1752987049928,-481.72,0.00022154,2]
[373402924,1752987049938,-460.0,0.00022154,2]
[373402925,1752987049947,-751.53,0.00022154,2]
[373402926,1752987049957,-460.0,0.00022154,2]
[373402927,1752987049966,-1399.65,0.00022154,2]
[373402928,1752987049975,-460.0,0.00022154,2]
[373402929,1752987049995,-500.0,0.0002216,2]
[373402930,1752987050006,-599.07,0.00022187,2]
[373402931,1752987050016,-1064.47,0.00022187,2]
[373402932,1752987050025,-703.19,0.00022187,2]
[373402933,1752987050035,-778.82,0.00022187,2]
[373402934,1752987050045,-150.14465154,0.000222,2]
[373402935,1752987050055,-1488.94,0.00022255,2]
[373402936,1752987050065,-2298.4431684,0.00022314,7]
[373402937,1752987050076,-4004.55,0.000224,7]
[373402938,1752987050086,-159.36810832,0.0002241,4]
[373402939,1752987050096,-683.29,0.00022426,2]
[373402940,1752987050106,-1203.39,0.00022427,2]
[373402941,1752987050116,-460.0,0.00022427,2]
[373402942,1752987050126,-1010.28,0.00022427,2]
[373402943,1752987050136,-2038.2,0.00022427,2]
[373402944,1752987050146,-481.72,0.00022428,2]
[373402945,1752987050158,-372.18,0.00022428,2]
[373402946,1752987050167,-751.53,0.00022428,2]
[373402947,1752987050177,-460.0,0.00022428,2]
[373402948,1752987050187,-1399.65,0.00022428,2]
[373402949,1752987050196,-460.0,0.00022428,2]
[373402950,1752987050206,-599.07,0.00022461,2]
[373402951,1752987050215,-1064.47,0.00022461,2]
[373402952,1752987050226,-703.19,0.00022461,2]
[373402953,1752987050235,-778.82,0.00022461,2]
[373402954,1752987050245,-1488.94,0.00022529,2]
[373402955,1752987050255,-429.4514592,0.00022548,2]
[373402956,1752987050265,-429.4514592,0.00022548,2]
[373402957,1752987050274,-429.4514592,0.00022548,2]
[373402958,1752987050284,-612.3560925,0.00022548,2]
[373402959,1752987050294,-429.4514592,0.00022548,2]
[373402960,1752987050304,-429.4514592,0.00022548,2]
[373402961,1752987050315,-428.9035992,0.00022548,2]
[373402962,1752987050325,-2298.4431684,0.0002259,7]
[373402963,1752987050335,-182.509569,0.00022603,2]
[373402964,1752987050346,-683.29,0.000227,2]
[373402965,1752987050355,-1203.39,0.00022701,2]
[373402966,1752987050365,-460.0,0.00022701,2]
[373402968,1752987050374,-1010.28,0.00022701,2]
[373402970,1752987050384,-2038.2,0.00022701,2]
[373402972,1752987050394,-481.72,0.00022702,2]
[373402973,1752987050404,-751.53,0.00022702,2]
[373402974,1752987050414,-460.0,0.00022702,2]
[373402975,1752987050423,-1399.65,0.00022702,2]
[373402976,1752987050433,-460.0,0.00022702,2]
[373402977,1752987050443,-599.07,0.00022735,2]
[373402978,1752987050452,-1064.47,0.00022735,2]
[373402979,1752987050462,-703.19,0.00022735,2]
[373402980,1752987050472,-778.82,0.00022735,2]
[373402981,1752987050481,-1488.94,0.00022803,2]
[373402982,1752987050491,-2298.4431684,0.00022866,8]
[373402983,1752987050501,-215.0738,0.00022936,2]
[373402984,1752987050511,-159.8396335,0.00022959,2]
[373402985,1752987050521,-178.1416697,0.00022959,2]
[373402986,1752987050530,-153.0,0.00022959,2]
[373402987,1752987050540,-153.0,0.00022959,2]
[373402988,1752987050550,-577.2483964,0.00022959,2]
[373402989,1752987050560,-159.8396335,0.00022959,2]
[373402990,1752987050570,-153.0,0.00022959,2]
[373402991,1752987050580,-577.2483964,0.00022959,2]
[373402992,1752987050590,-178.1416697,0.00022959,2]
[373402993,1752987050599,-153.0,0.00022959,2]
[373402994,1752987050612,-610.4087218,0.00022959,2]
[373402995,1752987050623,-153.0,0.00022959,2]
[373402996,1752987050632,-159.8396335,0.00022959,2]
[373402997,1752987050642,-158.9692058,0.00022959,2]
[373402998,1752987050655,-683.29,0.00022973,2]
[373402999,1752987050665,-1203.39,0.00022975,2]
[373403000,1752987050674,-460.0,0.00022975,2]
[373403001,1752987050684,-1010.28,0.00022975,2]
[373403002,1752987050696,-2038.2,0.00022975,2]
[373403003,1752987050706,-481.72,0.00022976,2]
[373403004,1752987050716,-751.53,0.00022976,2]
[373403005,1752987050727,-460.0,0.00022976,2]
[373403006,1752987050737,-1399.65,0.00022976,2]
[373403007,1752987050747,-549.5419003,0.00022976,2]
[373403008,1752987050756,-1219.99,0.00023,2]
[373403009,1752987050766,-160.0,0.00023,3]
[373403010,1752987050776,-839.59621281,0.00023,3]
[373403011,1752987050786,-160.0,0.00023,3]
[373403012,1752987050795,-160.0,0.00023,3]
[373403013,1752987050805,-525.91036056,0.00023,3]
[373403014,1752987050816,-230.98123516,0.00023,3]
[373403015,1752987050825,-215.71456056,0.00023,3]
[373403016,1752987050835,-599.07,0.00023009,2]
[373403017,1752987050845,-1064.47,0.00023009,2]
[373403019,1752987050855,-703.19,0.00023009,2]
[373403021,1752987050864,-778.82,0.00023009,2]
[373403023,1752987050874,-160.0,0.00023014,7]
[373403025,1752987050883,-199.825654,0.0002303,4]
[373403027,1752987050892,-1488.94,0.00023077,2]
[373403029,1752987050902,-7537.34378004,0.0002309,2]
[373403030,1752987050912,-429.4514592,0.00023096,2]
[373403032,1752987050922,-429.4514592,0.00023096,2]
[373403033,1752987050931,-429.4514592,0.00023096,2]
[373403034,1752987050941,-429.4514592,0.00023096,2]
[373403035,1752987050950,-429.4514592,0.00023096,2]
[373403036,1752987050959,-429.4514592,0.00023096,2]
[373403037,1752987050969,-429.4514592,0.00023096,2]
[373403038,1752987050979,-429.4514592,0.00023096,2]
[373403039,1752987050988,-429.4514592,0.00023096,2]
[373403040,1752987050997,-429.4514592,0.00023096,2]
[373403041,1752987051007,-823.0,0.00023096,2]
[373403042,1752987051018,-2298.4431684,0.00023141,8]
[373403043,1752987051027,-164.00619825,0.00023151,2]
[373403044,1752987051036,-152.031017,0.00023217,8]
[373403045,1752987051046,-152.031017,0.00023223,8]
[373403046,1752987051056,-683.29,0.00023247,2]
[373403047,1752987051066,-1203.39,0.00023249,2]
[373403048,1752987051077,-460.0,0.00023249,2]
[373403049,1752987051087,-1010.28,0.00023249,2]
[373403050,1752987051096,-2038.2,0.00023249,2]
[373403051,1752987051107,-481.72,0.0002325,2]
[373403052,1752987051117,-751.53,0.0002325,2]
[373403053,1752987051127,-460.0,0.0002325,2]
[373403054,1752987051136,-1399.65,0.0002325,2]
[373403055,1752987051146,-500.0,0.00023256,2]
[373403056,1752987051156,-599.07,0.00023283,2]
[373403057,1752987051165,-1064.47,0.00023283,2]
[373403058,1752987051183,-703.19,0.00023283,2]
[373403059,1752987051193,-778.82,0.00023283,2]
[373403061,1752987051203,-647.0,0.00023341,2]
[373403063,1752987051212,-396.393,0.00023341,2]
[373403065,1752987051221,-417.607,0.00023341,2]
[373403067,1752987051230,-2156.0,0.00023341,2]
[373403069,1752987051239,-968.0,0.00023341,2]
[373403071,1752987051249,-1488.94,0.00023351,2]
[373403073,1752987051258,-159.8396335,0.0002337,2]
[373403075,1752987051267,-353.1295681,0.0002337,2]
[373403077,1752987051276,-577.2483964,0.0002337,2]
[373403079,1752987051285,-178.1416697,0.0002337,2]
[373403081,1752987051294,-153.0,0.0002337,2]
[373403096,1752987051429,-178.1416697,0.0002337,2]
[373403098,1752987051439,-153.0,0.0002337,2]
[373403100,1752987051448,-159.8396335,0.0002337,2]
[373403102,1752987051457,-577.2483964,0.0002337,2]
[373403104,1752987051466,-178.1416697,0.0002337,2]
[373403106,1752987051478,-159.8396335,0.0002337,2]
[373403108,1752987051487,-577.2483964,0.0002337,2]
[373403110,1752987051496,-159.8396335,0.0002337,2]
[373403111,1752987051505,-1287.5135826,0.0002337,2]
[373403113,1752987051514,-177.1379916,0.0002337,2]
[373403115,1752987051524,-153.0,0.0002337,2]
[373403117,1752987051533,-159.8396335,0.0002337,2]
[373403119,1752987051542,-159.8396335,0.0002337,2]
[373403121,1752987051551,-153.0,0.0002337,2]
[373403123,1752987051561,-159.8396335,0.0002337,2]
[373403125,1752987051570,-159.8396335,0.0002337,2]
[373403126,1752987051580,-153.0,0.0002337,2]
[373403127,1752987051590,-159.8396335,0.0002337,2]
[373403128,1752987051600,-159.8396335,0.0002337,2]
[373403129,1752987051610,-153.0,0.0002337,2]
[373403130,1752987051620,-1276.19,0.000234,7]
[373403131,1752987051629,-62923.29,0.000234,2]